Cogmind - Beta 13 @@@ ROGUE MODE // 2024.04.04 @ 09:48:10 Player: Yovador Result: Destroyed by G-34 Mercenary with Small Laser Performance ------------- Evolutions (0) 0 Regions Visited (4) 800 Robots Destroyed (11) 55 Value Destroyed (140) 140 Prototype IDs (0) 0 Alien Tech Used (0) 0 Bonus (300) 300 TOTAL SCORE: 1295 Bonus ------- Aligned with FarCom 300 Cogmind --------- Core Integrity 0/250 Matter 285/300 Energy 71/125 System Corruption 3% Temperature Critical (566) Movement Treading (160) Location -9/Mines Parts ------- > --- POWER (1) -------- Light Ion Engine > --- PROPULSION (2) --- Improved Treads Improved Treads > --- UTILITY (2) ------ Medium Storage Unit Terrain Scan Processor > --- WEAPON (2) ------- Particle Cannon Particle Cannon > --- INVENTORY (10) --- Light Treads Improved Treads Propulsion Shielding Medium Laser Light Assault Rifle Mining Laser Peak State ------------ > --- POWER ------------ Light Ion Engine > --- PROPULSION ------- Improved Treads Improved Treads > --- UTILITY ---------- Small Storage Unit Terrain Scan Processor > --- WEAPON ----------- EM Pulse Gun Particle Cannon > --- INVENTORY -------- Light Ion Engine Light Treads Improved Treads Aluminum Leg Aluminum Leg Medium Laser Particle Cannon Light Assault Rifle [Rating: 12] Favorites ----------- Power Light Ion Engine Engine Light Ion Engine Propulsion Improved Treads Treads Improved Treads Utility Terrain Scan Processor Storage Small Storage Unit Processor Terrain Scan Processor Weapon EM Pulse Gun Energy Gun EM Pulse Gun Energy Cannon Particle Cannon Ballistic Gun Light Assault Rifle Build | -11 -10 -10 -10 -9 ------- Run | Yrd Mat Min Exi Min Slots Evolved . | . . . . . Power . | . . . . . Propulsion . | . . . . . Utility . | . . . . . Weapon . | . . . . . Parts Attached 13 | 6 5 . . 2 Power 2 | 1 . . . 1 Engine 2 | 1 . . . 1 Core . | . . . . . Reactor . | . . . . . Propulsion 4 | 2 2 . . . Treads 4 | 2 2 . . . Leg . | . . . . . Wheel . | . . . . . Hover . | . . . . . Flight . | . . . . . Utility 3 | 1 2 . . . Device . | . . . . . Storage 2 | 1 1 . . . Processor 1 | . 1 . . . Hackware . | . . . . . Protection . | . . . . . Artifact . | . . . . . Weapon 4 | 2 1 . . 1 Energy Gun 1 | 1 . . . . Energy Cannon 2 | . 1 . . 1 Ballistic Gun 1 | 1 . . . . Ballistic Cannon . | . . . . . Launcher . | . . . . . Special Weapon . | . . . . . Impact Weapon . | . . . . . Slashing Weapon . | . . . . . Piercing Weapon . | . . . . . Special Melee Weapon . | . . . . . Unidentified Prototypes . | . . . . . Parts Lost 2 | . . . . 2 Power 1 | . . . . 1 Propulsion . | . . . . . Utility . | . . . . . Weapon 1 | . . . . 1 Highest Loss Streak 2 | . . . . 2 To Critical Strikes . | . . . . . Average Slot Usage (%) 99 | . 99 100 100 100 Engine 14 | . 14 14 14 14 Treads 28 | . 28 28 28 28 Storage 14 | . 14 14 14 14 Processor 13 | . 13 14 14 14 Energy Gun 13 | . 14 14 14 12 Energy Cannon 13 | . 13 14 14 15 Naked Turns . | . . . . . Heaviest Build 19 | 11 19 19 19 19 Greatest Support 46 | 40 46 46 46 46 Greatest Overweight (x) . | . . . . . Average Overweight (x) . | . . . . . Largest Inventory Capacity 10 | 8 10 10 10 10 Average Capacity 8 | 6 8 10 10 10 Most Carried 8 | 6 8 8 8 8 Average Carried 7 | 4 7 8 8 7 Final Capacity 10 | 8 10 10 10 10 Final Carried 8 | 6 8 8 8 6 Class Distribution -------------------- 100% | Mutant Dominant Class ---------------- Mutant | -10/Materials Mutant | -10/Mines Mutant | -10/Exiles Mutant | -9/Mines Resources | -11 -10 -10 -10 -9 ----------- Run | Yrd Mat Min Exi Min Matter Collected 337 | 175 162 . . . Remotely . | . . . . . Salvage Created 308 | . 280 . . 28 Parts 20 | . 17 . . 3 Haulers Intercepted . | . . . . . Recyclers Shooed . | . . . . . Parts Field Recycled . | . . . . . Retrieved Matter . | . . . . . Parts Self-Destructed . | . . . . . Prevented . | . . . . . Kills | -11 -10 -10 -10 -9 ------- Run | Yrd Mat Min Exi Min Combat Hostiles Destroyed 5 | . 4 . . 1 Guns 2 | . 2 . . . Cannons 3 | . 2 . . 1 Classes Destroyed 5 | . 5 . . . Worker 2 | . 1 . . 1 Recycler 1 | . 1 . . . Watcher 3 | . 3 . . . Swarmer 4 | . 3 . . 1 Grunt 1 | . 1 . . . Best Kill Streak 3 | . 3 . . 1 Combat Bots Only 2 | . 2 . . 1 Max Kills in Single Turn 1 | . 1 . . 1 Gunslinging . | . . . . . Exploded . | . . . . . Melee . | . . . . . Uniques/NPCs Destroyed . | . . . . . Combat | -11 -10 -10 -10 -9 -------- Run | Yrd Mat Min Exi Min Hostile Shots Fired 96 | . 33 . . 63 Missed 16 | . 9 . . 7 Damage Taken 755 | . 226 . . 529 Core 253 | . 40 . . 213 Absorbed by Shields . | . . . . . Core Remaining (%) 100 | 100 . . . . Volleys Fired 30 | . 19 . . 11 Largest 2 | . 2 . . 2 Hottest 136 | . 108 . . 136 Shots Fired 59 | . 38 1 . 20 Gun 23 | . 19 . . 4 Cannon 36 | . 19 1 . 16 Launcher . | . . . . . Special . | . . . . . Kinetic . | . . . . . Thermal 36 | . 19 1 . 16 Explosive . | . . . . . Electromagnetic 23 | . 19 . . 4 Robot Hit Streak 8 | . 8 3 . 5 Robot Miss Streak 6 | . 3 . . 6 Penetration Max . | . . . . . Secondary Targets . | . . . . . Shots Hit Robots 28 | . 21 1 . 6 Core Hits 12 | . 9 . . 3 Critical Kills . | . . . . . Critical Parts Destroyed . | . . . . . Critical Strikes . | . . . . . Melee Attacks . | . . . . . Impact . | . . . . . Slashing . | . . . . . Piercing . | . . . . . Sneak Attacks . | . . . . . Combat Hostiles . | . . . . . Follow-up Attacks . | . . . . . Damage Inflicted 610 | . 439 20 . 151 Guns 207 | . 180 . . 27 Cannons 308 | . 206 20 . 82 Explosions 95 | . 53 . . 42 Melee . | . . . . . Ramming . | . . . . . Kinetic . | . . . . . Thermal 403 | . 259 20 . 124 Explosive . | . . . . . Electromagnetic 207 | . 180 . . 27 Impact . | . . . . . Slashing . | . . . . . Piercing . | . . . . . Highest Corruption 3 | . 3 3 3 3 Average Corruption 2 | . 2 3 3 3 Corruption Purged . | . . . . . Corruption Blocked . | . . . . . Effects 22 | . 8 3 5 6 Message Errors 3 | . 1 . 1 1 Matter Fused 3 | . 3 . . . Heat Flow Errors 3 | . 2 . 1 . Energy Discharges 5 | . 1 . 3 1 Data Loss (minor) 4 | . 1 1 . 2 Data Loss (major) 2 | . . 1 . 1 Misfires 1 | . . 1 . . Weapon Failures 1 | . . . . 1 Overload Shots . | . . . . . Overflow Damage 12 | . 12 . . . Projectiles 12 | . 12 . . . Explosions . | . . . . . Melee . | . . . . . Knockbacks . | . . . . . Impact . | . . . . . Kinetic . | . . . . . Secondary . | . . . . . Self-Inflicted Damage 23 | . 23 . . . Shots 1 | . 1 . . . Rammed . | . . . . . Targets Rammed . | . . . . . Kicked . | . . . . . Crushed . | . . . . . Highest Temperature 560 | . 257 30 119 560 Average Temperature 101 | . 75 19 63 208 Received Heat Transfer 96 | . 24 . . 72 Effects 3 | . . . . 3 Shutdowns 1 | . . . . 1 Energy Bleed 1 | . . . . 1 Damage (core) 1 | . . . . 1 Siege Activations . | . . . . . Robots Corrupted . | . . . . . Combat Hostiles . | . . . . . Parts Fried 1 | . 1 . . . Impact Corruptions . | . . . . . Robots Melted . | . . . . . Combat Hostiles . | . . . . . Parts Melted 1 | . . . . 1 Heat Transferred 655 | . 420 37 . 198 Parts Sabotaged . | . . . . . Parts Stolen . | . . . . . Parts Stripped . | . . . . . Power Chain Reactions 2 | . 1 . . 1 Alert | -11 -10 -10 -10 -9 ------- Run | Yrd Mat Min Exi Min Peak Influence 157 | . 157 17 . 30 Initial 17 | . . 17 . . Average 52 | . 69 17 . 1 Maximum Alert Level . | . . . . . Low Security (%) 100 | 100 100 100 . 100 Level 1 . | . . . . . Level 2 . | . . . . . Level 3 . | . . . . . Level 4 . | . . . . . Level 5 . | . . . . . High Security . | . . . . . Max Security . | . . . . . Squads Dispatched 2 | . 2 . . . Investigation 2 | . 2 . . . Extermination . | . . . . . Reinforcement . | . . . . . Assault . | . . . . . Garrison . | . . . . . Intercept . | . . . . . Searches Triggered . | . . . . . Construction Impeded . | . . . . . Haulers Reinforced . | . . . . . Active Scanning Responses . | . . . . . Cargo Convoy Interrupts . | . . . . . Stealth | -11 -10 -10 -10 -9 --------- Run | Yrd Mat Min Exi Min Distress Signals . | . . . . . Communications Jammed . | . . . . . Distress Signals . | . . . . . Times Spotted 16 | . 11 . . 5 Peak Tracking Total 5 | . 3 . . 5 Tactical Retreats 1 | . 1 . . . Traps | -11 -10 -10 -10 -9 ------- Run | Yrd Mat Min Exi Min Traps Triggered 2 | . 2 . . . Indirectly . | . . . . . Trap Hack Attempts . | . . . . . Triggered . | . . . . . Disarmed . | . . . . . Reprogrammed . | . . . . . Reused . | . . . . . Traps Extracted . | . . . . . Installed . | . . . . . Triggered . | . . . . . Machines | -11 -10 -10 -10 -9 ---------- Run | Yrd Mat Min Exi Min Machines Disabled 1 | . 1 . . . Max in Single Turn 1 | . 1 . . . Machines Repaired . | . . . . . Machines Dismantled . | . . . . . Machines Sabotaged . | . . . . . Overloaded Fab Kills . | . . . . . Hacking | -11 -10 -10 -10 -9 --------- Run | Yrd Mat Min Exi Min Machines Accessed 5 | . 5 . . . Terminals 4 | . 4 . . . Fabricators . | . . . . . Repair Stations . | . . . . . Recycling Units 1 | . 1 . . . Scanalyzers . | . . . . . Garrison Access . | . . . . . Total Hacks 10 | . 10 . . . Successful 5 | . 5 . . . Failed 5 | . 5 . . . Catastrophic 2 | . 2 . . . Database Lockouts . | . . . . . Manual . | . . . . . Terminals 8 | . 8 . . . Fabricators . | . . . . . Repair Stations . | . . . . . Recycling Units 2 | . 2 . . . Scanalyzers . | . . . . . Garrison Access . | . . . . . Terminal Hacks 5 | . 5 . . . Branch Access Points 1 | . 1 . . . Emergency Access Points 1 | . 1 . . . Alert Level 1 | . 1 . . . Locate Traps 1 | . 1 . . . Dispatch Records 1 | . 1 . . . Fabricator Hacks . | . . . . . Repair Station Hacks . | . . . . . Recycling Unit Hacks . | . . . . . Scanalyzer . | . . . . . Garrison Access Hacks . | . . . . . Unauthorized Hacks . | . . . . . Terminals . | . . . . . Fabricators . | . . . . . Repair Stations . | . . . . . Recycling Units . | . . . . . Scanalyzers . | . . . . . Garrison Access . | . . . . . Data Cores Recovered . | . . . . . Used . | . . . . . Hacking Detections 3 | . 3 . . . Full Trace Events 2 | . 2 . . . Feedback Events . | . . . . . Feedback Blocked . | . . . . . Robot Schematics Acquired . | . . . . . Robots Built . | . . . . . Authchips . | . . . . . Time . | . . . . . Total Robot Build Rating . | . . . . . Part Schematics Acquired . | . . . . . Parts Built . | . . . . . Authchips . | . . . . . Time . | . . . . . Total Part Build Rating . | . . . . . Parts Repaired . | . . . . . Time . | . . . . . Parts Recycled . | . . . . . Recycled Matter . | . . . . . Retrieved Matter . | . . . . . Retrieved Components . | . . . . . Parts Scanalyzed . | . . . . . Part Schematics Acquired . | . . . . . Parts Damaged . | . . . . . Bothacking | -11 -10 -10 -10 -9 ------------ Run | Yrd Mat Min Exi Min Used RIF Installer . | . . . . . Robots Hacked . | . . . . . Non-combat . | . . . . . Combat . | . . . . . Robot Hacks Applied . | . . . . . Relay Couplers Released . | . . . . . Fabnet Peak Effective % . | . . . . . Robots Rewired . | . . . . . Allies Hacked . | . . . . . Hacks Repelled . | . . . . . Allies | -11 -10 -10 -10 -9 -------- Run | Yrd Mat Min Exi Min Total Allies . | . . . . . Largest Group . | . . . . . Highest-Rated Group . | . . . . . Highest-Rated Ally . | . . . . . Total Orders . | . . . . . Ally Attacks . | . . . . . Total Damage . | . . . . . Kills . | . . . . . Allies Corrupted . | . . . . . Allies Melted . | . . . . . Intel | -11 -10 -10 -10 -9 ------- Run | Yrd Mat Min Exi Min Robot Analysis Total . | . . . . . Derelict Logs Recovered 1 | . . . . 1 Drone Launches . | . . . . . Drone Recoveries . | . . . . . Exploration | -11 -10 -10 -10 -9 ------------- Run | Yrd Mat Min Exi Min Turns Passed 1538 | 74 946 114 245 159 Spaces Moved 852 | 55 493 72 154 78 Core 28 | 28 . . . . Treads 824 | 27 493 72 154 78 Legs . | . . . . . Wheels . | . . . . . Hover . | . . . . . Flight . | . . . . . Fastest Speed 50 | 50 160 160 160 160 Average Speed 156 | 104 160 160 160 160 Slowest Speed 160 | 160 160 160 160 160 Overloaded Moves . | . . . . . Propulsion Burnouts . | . . . . . Robots Hopped . | . . . . . Cave-ins Triggered . | . . . . . Exploration Rate (%) 32 | 3 58 26 54 19 Regions Visited 4 Branch Regions 3 Pre-discovered Areas . | . . . . . Known Exits Taken 1 | . 1 . . . Unknown Exits Taken 3 | 1 . 1 1 . Scrap Searched . | . . . . . Spaces Dug . | . . . . . Terrain Destroyed 13 | . 7 . . 6 Melee . | . . . . . Projectile . | . . . . . AOE 13 | . 7 . . 6 Terrain Rammed . | . . . . . Walls Destroyed . | . . . . . Machines Disabled . | . . . . . Actions | -11 -10 -10 -10 -9 --------- Run | Yrd Mat Min Exi Min Total 1002 | 72 615 71 153 91 Wait 76 | . 76 . . . Move 848 | 54 492 71 153 78 Hop . | . . . . . Pick Up 25 | 12 13 . . . Fast Attach . | . . . . . Attach 9 | 6 1 . . 2 Detach . | . . . . . Swap 4 | . 4 . . . Drop 10 | . 10 . . . Fire 30 | . 19 . . 11 Melee . | . . . . . Ram . | . . . . . Kick . | . . . . . Crush . | . . . . . Escape Stasis . | . . . . . Rewire . | . . . . . Trap . | . . . . . Miscellaneous . | . . . . . Route ------- -11/Scrapyard -10/Materials (discovered 4 exits: [*Mat x2] / *Min x2) -10/Mines -10/Exiles -9/Mines History --------- Turn | Location | Event 20 | -11/Scrapyard | Discovered new exit (range 16) 75 | -11/Scrapyard | Entered Materials 310 | -10/Materials | Build established: Mutant 532 | -10/Materials | Identified exit to Mines 652 | -10/Materials | Discovered new exit (range 16) 887 | -10/Materials | Discovered new exit (range 16) 1021 | -10/Materials | Entered Mines 1127 | -10/Mines | Deemed a non-threat by the Exiles lab entrance 1127 | -10/Mines | Discovered new exit (range 5) 1135 | -10/Mines | Entered Exiles 1174 | -10/Exiles | Met 8R-AWN 1204 | -10/Exiles | Met EX-HEX 1247 | -10/Exiles | Met EX-BIN 1267 | -10/Exiles | Aligned with FarCom system 1268 | -10/Exiles | Given EX-Vault access code 1311 | -10/Exiles | Met EX-DEC 1367 | -10/Exiles | Discovered new exit (range 10) 1380 | -10/Exiles | Entered Mines 1399 | -9/Mines | Met a Derelict bent on vengeance 1526 | -9/Mines | Core integrity fell below 50% 1539 | -9/Mines | Core integrity fell below 20% 1539 | -9/Mines | Destroyed by G-34 Mercenary with Small Laser Last Messages --------------- U-05 Engineer builds a Wall. EM Pulse Gun destroyed. U-05 Engineer builds a Wall. System corrupted: Particle Cannon failed to cycle. U-05 Engineer builds a Wall. U-05 Engineer lays Concrete. R-06 Scavenger collects Med. Matter Pod. U-05 Engineer lays Concrete. Lgt. Ion Engine destroyed. 8HD 5ZRSXELVADFV9MJK#3BJC=5MVS U-05 Engineer builds a Wall. Overheating: Energy bleed (-9). U-05 Engineer builds a Wall. U-05 Engineer lays Concrete. S-10 Pest destroyed. Flight Unit melted. S-10 Pest destroyed. Power failure, Lgt. Ion Engine shutdown. Overheating: Core damaged (-50). Map ----- +----------------------------------------------------+ | ????# """ ### #??????????????????????????????? | | ????# #???#??????????????????????????????? | | ????#### ####??????? ????????????????????????? | | ???????# #######???? ????????????????????????? | | ???##### #???? ????????????????????????? | | ??## ####### #???? ????????????????????????? | | ?## ##??## #### #????????????????????? | | ?# ##?# #?????????????????????? | | ?# ### #### #??????????????????????? | | ?# ## #????? ????????????????????????? | | ??# ## ###???# ????????????????????????? | | ??## #???# #????????????????????????? | | ???## ##### #???# #????????????????????????? | | ???## ##???# #???#$#????????????????????????? | | ??## ##????# #???# #????????????????????????? | | ?## ######## ##### #????????????????????????? | | ?# ## ###??????????????????????? | | ?# ### ########### #??????????????????????? | | ?## ##?# #?????????### #??????????????????????? | | ??## #??# #???????????#u#??????????????????????? | | ???# #### #??????????##u##?????????????????????? | | ???# #??????????## ##?????????????????????? | | ???########???????????# #??????????????????????? | | ??????????????###?????#*#??????????????????????? | | ??????????????# s ## ########???????????????? | | ??????????????# """ = @gbr #???????????????? | | ??????????????# """ ######### #???????????????? | | ??????????????? """ ???????????????????????????? | | ??????????????? ????????????????????????????? | | ??????????????# "??????????????????????????????? | | ??????????????# ???????????????????????????????? | | ??????????????#????????????????????????????????? | | ???????????????????????????????????????????????? | | ???????????????????????????????????????????????? | | ???????????????????????????????????????????????? | | ???????????????????????????????????????????????? | | ???????????????????????????????????????????????? | | ???????????????????????????????????????????????? | | ???????????????????????????????????????????????? | | ???????????????????????????????????????????????? | | ???????????????????????????????????????????????? | | ???????????????????????????????????????????????? | | ???????????????????????????????????????????????? | | ???????????????????????????????????????????????? | | ???????????????????????????????????????????????? | | ???????????????????????????????????????????????? | | ???????????????????????????????????????????????? | | ???????????????????????????????????????????????? | | ???????????????????????????????????????????????? | | ???????????????????????????????????????????????? | +----------------------------------------------------+ Best States ------------- Heat Dissipation 25 Energy Generation 10 Energy Capacity 125 Matter Stores 300 Matter Capacity 300 Sight Range 16 Terrain Scan Density 85 Evasion (%) 50 Recoil Reduction 2 Item Schematics ----------------- None Robot Schematics ------------------ None Fabricated ------------ Nothing Alien Tech Used ----------------- None Achievements -------------- None Challenges ------------ None Game ------ Seed SensorFlyingEngine Manual? 0 Play Time 00:11:33 Cumulative 9.4 hours Start 2024.04.03 @ 21:38:34 End 2024.04.04 @ 09:48:10 Sessions 3 Manual Loads 0 Difficulty Rogue Special Mode None Game No. 24 Rogue 24 Adventurer 0 Explorer 0 Win Type - Total 0 Types 0/0/0/0/0/0/0/0/0 Lore% 6 Gallery% 14 Achievement% 13 Wizard Run 0 Options --------- Layout 1 ASCII 0 Keyboard 0 Movement Mouse Keybinds 0 Fullscreen 1 Font 24/Smallcaps Map View 50x35 Zoom Use 0% Tactical HUD 0 Map Filters NONE Filters NONE Steam 1 RUN: 6b25bcc8-f63a-42e3-955a-d6c217132172